bitfinex-derivatives/quotes_SOLF0:USTF0_20251020
["timestamp","ask_amount","ask_price","bid_price","bid_amount"]
[1760984273617,4.7998,187.47,187.42,4.8009]
[1760984273819,7.5498,187.47,187.43,2.87]
[1760984274514,4.7993,187.49,187.43,2.87]
[1760984274718,4.7993,187.49,187.44,2.87]
[1760984274923,2.75,187.5,187.44,2.87]
[1760984275122,4.7988,187.51,187.44,2.87]
[1760984275319,2.75,187.53,187.46,2.87]
[1760984276021,2.75,187.53,187.49,2.87]
[1760984277123,2.75,187.57,187.49,2.87]
[1760984277316,2.75,187.57,187.51,2.87]
[1760984277818,2.75,187.57,187.47,2.87]
[1760984279024,4.7978,187.55,187.49,7.6691]
[1760984280219,4.7978,187.55,187.5,2.87]
[1760984280417,4.7978,187.55,187.51,2.87]
[1760984280618,7.5278,187.55,187.51,2.87]
[1760984280918,2.73,187.54,187.5,2.87]
[1760984281121,4.7978,187.55,187.5,2.87]
[1760984281920,7.5278,187.55,187.5,2.87]
[1760984283922,2.73,187.54,187.46,2.87]
[1760984284321,4.7995,187.48,187.41,4.801]
[1760984284623,2.73,187.48,187.41,7.671]
[1760984285622,4.7998,187.47,187.41,7.671]
[1760984285819,4.60607913,187.5,187.41,2.87]
[1760984286020,36.2320054,187.55,187.41,2.87]
[1760984286021,4.8003,187.45,187.41,2.87]
[1760984286223,2.73,187.5,187.34,2.87]
[1760984286420,2.73,187.48,187.34,2.87]
[1760984286623,4.8001,187.46,187.34,2.87]
[1760984287217,7.5301,187.46,187.35,2.87]
[1760984287931,7.5301,187.46,187.4,4.8014]
[1760984288124,2.73,187.46,187.4,4.8014]
[1760984290530,2.73,187.46,187.41,2.87]
[1760984291629,2.73,187.46,187.37,2.87]
[1760984292529,2.73,187.46,187.41,4.8011]
[1760984292730,2.73,187.46,187.42,2.87]
[1760984293629,2.73,187.46,187.43,4.8006]
[1760984293818,2.73,187.46,187.42,2.87]
[1760984297127,9.5961,187.54,187.38,7.7117]
[1760984297128,5.1720054,187.51,187.38,7.7117]
[1760984297328,2.85,187.44,187.38,2.91]
[1760984297527,2.85,187.44,187.35,6.54904751]
[1760984297731,2.85,187.44,187.29,35.45]
[1760984297732,2.85,187.42,187.32,6.54904751]
[1760984298533,7.6522,187.38,187.32,9.45904751]
[1760984300628,2.85,187.37,187.32,6.54904751]
[1760984300826,4.97036153,187.48,187.4,4.8014]
[1760984301128,7.50552124,187.5,187.39,2.91]
[1760984301337,2.85,187.5,187.43,4.8007]
[1760984301533,2.85,187.5,187.43,2.91]
[1760984301733,4.65506923,187.49,187.43,2.91]
[1760984301928,2.85,187.49,187.43,2.91]
[1760984303036,2.85,187.47,187.39,7.7117]
[1760984304033,2.85,187.47,187.39,2.91]
[1760984304436,2.85,187.46,187.39,2.91]
[1760984305035,2.85,187.45,187.36,7.7122]
[1760984305536,2.85,187.45,187.37,2.91]
[1760984306535,4.65609846,187.45,187.37,2.91]
[1760984306735,2.85,187.44,187.37,2.91]
[1760984308334,2.85,187.44,187.37,7.712]
[1760984308745,2.85,187.44,187.38,2.8]
[1760984309330,4.65576501,187.47,187.38,2.8]
[1760984309731,9.45566501,187.47,187.39,4.8015]
[1760984309938,2.71,187.46,187.39,4.8015]
[1760984311138,2.71,187.46,187.39,7.6015]
[1760984311540,7.5101,187.46,187.39,7.6015]
[1760984315144,7.5101,187.46,187.39,4.8015]
[1760984315343,7.5101,187.46,187.4,7.6014]
[1760984315553,7.5101,187.46,187.4,2.8]
[1760984316746,4.8003,187.45,187.4,2.8]
[1760984316946,7.5103,187.45,187.4,2.8]
[1760984317442,6.6271487,187.49,187.35,2.8]
[1760984317646,2.71,187.47,187.35,2.8]
[1760984318347,2.71,187.47,187.29,2.8]
[1760984318557,2.71,187.46,187.29,2.8]
[1760984319458,4.8016,187.4,187.33,7.6032]
[1760984320157,4.8016,187.4,187.34,2.8]
[1760984320667,2.71,187.41,187.34,2.8]
[1760984322056,4.8017,187.4,187.34,2.8]
[1760984322757,2.71,187.48,187.34,2.8]
[1760984323252,2.71,187.48,187.36,5.1720054]
[1760984323558,4.8006,187.44,187.38,4.8019]
[1760984323752,4.8006,187.44,187.38,7.6019]
[1760984324256,2.71,187.42,187.34,2.8]
[1760984324963,2.71,187.4,187.34,2.8]
[1760984325157,2.71,187.4,187.32,7.9720054]
[1760984325367,2.71,187.4,187.33,2.8]
[1760984325667,2.71,187.48,187.33,2.8]
[1760984326361,4.801,187.42,187.36,2.8]
[1760984326959,4.801,187.42,187.36,4.8023]
[1760984327166,4.801,187.42,187.37,2.8]
[1760984327662,7.511,187.42,187.37,2.8]
[1760984328261,4.8004,187.45,187.39,2.8]
[1760984328467,4.8004,187.45,187.38,4.8019]
[1760984328468,2.71,187.46,187.38,4.8019]
[1760984329772,2.71,187.42,187.35,4.8025]
[1760984330474,7.5113,187.41,187.35,4.8025]
[1760984330673,7.5113,187.41,187.34,2.8]
[1760984330674,2.71,187.41,187.34,2.8]
[1760984332072,7.5119,187.39,187.34,2.8]
[1760984332276,4.8019,187.39,187.34,7.603]
[1760984332478,2.71,187.43,187.35,2.8]
[1760984333768,4.8011,187.42,187.36,2.8]
[1760984333969,2.71,187.42,187.36,2.8]
[1760984334971,4.8013,187.41,187.36,2.8]
[1760984335175,2.71,187.4,187.36,2.8]
[1760984335575,7.5116,187.4,187.36,2.8]
[1760984336172,2.71,187.39,187.35,4.8027]
[1760984336381,7.5119,187.39,187.33,4.8033]
[1760984337475,4.8021,187.38,187.33,4.8033]
[1760984337672,7.7121,187.38,187.34,2.7]
[1760984339675,4.8021,187.38,187.34,2.7]
[1760984339880,2.91,187.36,187.31,12.45456005]
[1760984340271,2.91,187.36,187.32,2.7]
[1760984342485,2.91,187.36,187.31,4.8036]
[1760984342775,7.7126,187.36,187.31,4.8036]
[1760984342969,2.91,187.35,187.3,7.65096005]
[1760984343170,2.91,187.35,187.27,7.65096005]
[1760984343366,2.91,187.35,187.27,2.7]
[1760984343984,2.91,187.32,187.28,7.5044]
[1760984344681,7.7129,187.35,187.29,7.5042]
[1760984344884,2.91,187.35,187.29,2.7]
[1760984345075,4.8033,187.33,187.29,2.7]
[1760984345382,2.91,187.32,187.28,2.7]
[1760984346083,4.8033,187.33,187.28,2.7]
[1760984346280,8.41274918,187.44,187.24,8.41274918]
[1760984346281,2.91,187.35,187.26,4.95096005]
[1760984346579,2.91,187.44,187.3,4.95096005]
[1760984346880,2.91,187.44,187.31,2.7]
[1760984348078,7.7121,187.38,187.34,2.7]
[1760984348270,4.8021,187.38,187.34,2.7]
[1760984348581,4.8014,187.41,187.34,2.7]
[1760984348784,2.91,187.44,187.34,2.7]
[1760984349383,4.8016,187.4,187.35,4.8026]
[1760984349578,4.8016,187.4,187.36,2.7]
[1760984349877,4.8013,187.41,187.36,7.5024]
[1760984350080,2.91,187.4,187.36,2.7]
[1760984350284,2.91,187.4,187.32,2.7]
[1760984350485,4.802,187.38,187.32,7.5034]
[1760984351279,2.91,187.36,187.32,7.5034]
[1760984351987,4.8024,187.37,187.33,2.7]
[1760984352282,2.91,187.39,187.33,2.7]
[1760984352789,4.8023,187.37,187.33,2.7]
[1760984353287,4.8023,187.37,187.32,4.8034]
[1760984353288,2.91,187.36,187.29,7.65096005]
[1760984354379,4.8028,187.35,187.29,7.65096005]
[1760984354786,4.8028,187.35,187.29,4.95096005]
[1760984354983,2.93,187.4,187.32,2.7]
[1760984355998,4.8019,187.39,187.34,4.8028]
[1760984356299,4.8019,187.39,187.35,2.7]
[1760984357291,7.7319,187.39,187.35,2.7]
[1760984358790,7.7319,187.39,187.36,4.96497918]
[1760984358989,7.7319,187.39,187.37,4.96497918]
[1760984359192,7.7319,187.39,187.38,4.96497918]
[1760984361591,4.8019,187.39,187.38,4.96497918]
[1760984361797,7.7313,187.41,187.38,4.96497918]
[1760984361995,7.7313,187.41,187.39,4.96497918]
[1760984362189,7.7313,187.41,187.4,4.96497918]
[1760984362585,2.93,187.41,187.4,4.96497918]
[1760984362793,2.93,187.43,187.4,4.96497918]
[1760984362993,2.93,187.43,187.41,4.96497918]
[1760984363192,2.93,187.43,187.37,2.7]
[1760984363498,2.93,187.43,187.38,4.97255137]
[1760984363701,4.8012,187.41,187.39,4.97255137]
[1760984363895,4.8012,187.41,187.4,4.97255137]
[1760984365400,7.7308,187.43,187.4,7.67255137]
[1760984365597,7.7308,187.43,187.41,4.97255137]
[1760984365800,7.7308,187.43,187.4,2.7]
[1760984366001,7.7308,187.43,187.41,4.96948538]
[1760984366201,4.8011,187.42,187.4,2.7]
[1760984366497,4.8011,187.42,187.41,4.96930282]
[1760984366898,4.8006,187.44,187.41,7.66930282]
[1760984367087,4.8006,187.44,187.36,4.95096005]
[1760984367088,4.8006,187.44,187.42,7.66930282]
[1760984367293,2.93,187.46,187.43,4.96913729]
[1760984367489,7.4603,187.45,187.44,4.96800471]
[1760984372204,2.66,187.46,187.44,4.96800471]
[1760984372507,2.66,187.46,187.4,7.6313]
[1760984372710,2.66,187.46,187.41,4.96132826]
[1760984373004,2.66,187.46,187.42,4.96132826]
[1760984373205,2.66,187.46,187.43,4.96132826]
[1760984373408,2.66,187.49,187.44,7.79132826]
[1760984373606,2.66,187.49,187.44,2.83]
[1760984373909,2.66,187.49,187.45,4.95984864]
[1760984374110,2.66,187.49,187.44,2.83]
[1760984374405,4.7998,187.47,187.45,4.95994225]
[1760984374605,4.7998,187.47,187.44,2.83]
[1760984374810,4.7998,187.47,187.45,4.95971324]
[1760984375003,4.7998,187.47,187.44,2.83]
[1760984375308,4.7998,187.47,187.41,4.8011]
[1760984375309,7.4601,187.46,187.41,2.83]
[1760984375509,7.4601,187.46,187.42,7.78802931]
[1760984375710,7.4601,187.46,187.43,4.95802931]
[1760984376006,7.4601,187.46,187.44,4.95802931]
[1760984376207,7.4601,187.46,187.42,2.83]
[1760984376396,7.4601,187.46,187.43,4.95857401]
[1760984376601,7.4601,187.46,187.44,4.95857401]
[1760984376804,7.4601,187.46,187.42,2.83]
[1760984377111,7.4601,187.46,187.43,4.95772821]
[1760984377310,7.4601,187.46,187.44,4.95772821]
[1760984377511,7.4601,187.46,187.42,2.83]
[1760984377712,7.4601,187.46,187.43,4.95748617]
[1760984377914,4.8001,187.46,187.44,4.95748617]
[1760984378209,4.8001,187.46,187.42,2.83]
[1760984378506,4.8001,187.46,187.43,7.78720403]
[1760984378710,4.8001,187.46,187.44,4.95720403]
[1760984378910,4.8001,187.46,187.45,4.95645534]
[1760984380212,4.8001,187.46,187.43,2.83]
[1760984380511,4.8001,187.46,187.44,7.78507805]
[1760984380811,4.8001,187.46,187.44,2.83]
[1760984383009,4.8003,187.45,187.42,2.83]
[1760984383209,2.66,187.46,187.43,4.95189027]
[1760984383422,2.66,187.46,187.37,2.83]
[1760984383713,2.66,187.46,187.39,2.83]
[1760984384014,4.8008,187.43,187.4,7.7842494]
[1760984384212,4.8008,187.43,187.41,4.9542494]
[1760984384416,7.4608,187.43,187.4,2.83]
[1760984384716,7.4608,187.43,187.41,4.95410858]
[1760984384910,7.4608,187.43,187.4,2.83]
[1760984385211,7.4608,187.43,187.41,4.95411159]
[1760984385413,7.4608,187.43,187.42,4.95431679]
[1760984386320,2.66,187.43,187.42,4.95431679]
[1760984386917,2.66,187.43,187.42,4.94284421]
[1760984388522,4.8006,187.44,187.42,7.77284421]
[1760984388723,4.8006,187.44,187.43,4.94284421]
[1760984388921,7.4606,187.44,187.43,4.94284421]
[1760984390622,7.4606,187.44,187.39,2.83]
[1760984390823,7.4606,187.44,187.41,2.83]
[1760984391122,7.4606,187.44,187.42,4.9479837]
[1760984391323,7.4606,187.44,187.43,4.94962456]
[1760984392625,4.8013,187.41,187.38,2.83]
[1760984392826,4.8013,187.41,187.39,7.78076395]
[1760984393028,4.8013,187.41,187.4,4.95076395]
[1760984394220,7.4608,187.43,187.4,7.78076395]
[1760984394420,7.4608,187.43,187.41,4.95076395]
[1760984394627,7.4608,187.43,187.42,4.95076395]
[1760984395032,4.8008,187.43,187.42,4.95076395]
[1760984395620,4.8008,187.43,187.42,7.78076395]
[1760984397031,4.8008,187.43,187.42,4.95076395]
[1760984398228,4.8004,187.45,187.42,7.66076395]
[1760984398427,2.66,187.46,187.43,4.95076395]
[1760984398628,2.66,187.46,187.42,2.71]
[1760984398830,2.87,187.49,187.43,7.66170126]
[1760984399027,2.87,187.49,187.44,7.66170126]
[1760984399227,2.87,187.49,187.44,2.71]
[1760984400334,4.8001,187.46,187.44,2.71]
[1760984400532,2.87,187.46,187.4,2.71]
[1760984400735,2.87,187.46,187.41,4.95395654]
[1760984401030,2.87,187.43,187.42,8.97837361]
[1760984403436,2.87,187.42,187.38,4.95096005]
[1760984404740,7.6717,187.39,187.38,4.95096005]
[1760984405236,7.6717,187.39,187.37,4.95096005]
[1760984405435,7.6722,187.37,187.36,4.95096005]
[1760984405641,7.6722,187.37,187.35,4.95096005]
[1760984406839,7.6727,187.35,187.34,4.95096005]
[1760984407233,7.6727,187.35,187.33,4.95096005]
[1760984407434,7.6727,187.35,187.34,4.95096005]
[1760984407639,7.6727,187.35,187.32,4.95096005]
[1760984407942,2.87,187.4,187.33,2.71]
[1760984408541,4.802,187.38,187.33,2.71]
[1760984408940,4.802,187.38,187.34,2.71]
[1760984410343,4.8023,187.37,187.34,2.71]
[1760984417654,2.69,187.39,187.34,2.71]
[1760984418448,4.8023,187.37,187.34,2.71]
[1760984418950,2.69,187.39,187.31,7.65096005]
[1760984419152,2.69,187.43,187.31,4.95096005]
[1760984419950,4.8028,187.35,187.31,4.95096005]
[1760984420150,4.8028,187.35,187.31,7.65096005]
[1760984420954,7.4928,187.35,187.31,7.65096005]
[1760984421144,7.4928,187.35,187.32,2.7]
[1760984427556,4.8028,187.35,187.32,2.7]
[1760984427857,2.92,187.42,187.33,2.76]
[1760984428050,2.92,187.42,187.34,2.76]
[1760984428849,4.8018,187.39,187.34,2.76]
[1760984429454,2.92,187.42,187.35,2.76]
[1760984429754,2.92,187.45,187.35,2.76]
[1760984430461,4.8013,187.41,187.35,2.76]
[1760984431161,4.8013,187.41,187.36,2.76]
[1760984431959,44.44,187.46,187.35,4.95096005]
[1760984432257,2.92,187.45,187.33,2.76]
[1760984432749,44.44,187.46,187.33,2.76]
[1760984432750,7.7223,187.37,187.33,2.76]
[1760984437366,4.8026,187.36,187.33,2.76]
[1760984440271,4.8026,187.36,187.33,7.71096005]
[1760984440667,7.7226,187.36,187.33,7.71096005]
[1760984440868,2.92,187.34,187.31,4.95096005]
[1760984441074,2.92,187.34,187.29,7.71096005]
[1760984441272,2.92,187.34,187.3,4.95096005]
[1760984441570,7.7233,187.33,187.3,2.76]
[1760984442456,7.7233,187.33,187.3,7.71096005]
[1760984443765,2.92,187.31,187.29,4.95096005]
[1760984443966,2.92,187.31,187.28,4.95096005]
[1760984444365,2.92,187.31,187.29,4.95096005]
[1760984445073,7.7239,187.31,187.29,4.95096005]
[1760984445373,7.7239,187.31,187.28,4.95096005]
[1760984445567,7.7239,187.31,187.28,7.71096005]
[1760984445964,4.8039,187.31,187.28,7.71096005]
[1760984446265,7.7233,187.33,187.29,2.76]
[1760984447065,7.7233,187.33,187.29,4.95096005]
[1760984447264,7.7233,187.33,187.3,2.76]
[1760984449175,2.92,187.36,187.3,2.76]
[1760984449472,2.92,187.36,187.3,7.71096005]
[1760984450574,2.92,187.36,187.31,4.95096005]
[1760984450777,2.92,187.36,187.3,7.71096005]
[1760984450965,4.8031,187.34,187.3,4.95096005]
[1760984451166,2.92,187.36,187.31,2.76]
[1760984452471,9.6021,187.42,187.31,2.76]
[1760984452673,9.6021,187.42,187.3,4.95096005]
[1760984452674,2.92,187.41,187.33,2.76]
[1760984452975,2.92,187.41,187.34,4.95096005]
[1760984453175,2.92,187.41,187.36,2.76]
[1760984453374,44.46,187.43,187.36,7.71096005]
[1760984453576,44.46,187.43,187.37,2.76]
[1760984454167,4.8013,187.41,187.37,2.76]
[1760984454470,2.92,187.45,187.39,2.76]
[1760984455977,4.8005,187.44,187.39,2.76]
[1760984457276,2.79,187.48,187.39,2.76]
[1760984457484,2.79,187.52,187.4,2.85]
[1760984457875,2.79,187.52,187.41,2.85]
[1760984458975,4.7995,187.48,187.41,7.651]
[1760984459181,2.79,187.52,187.42,2.85]
[1760984459682,2.79,187.46,187.39,2.85]
[1760984460480,7.59,187.46,187.39,2.85]
[1760984461283,2.79,187.46,187.39,2.85]
[1760984462975,2.79,187.46,187.4,2.85]
[1760984462976,4.8003,187.45,187.4,2.85]
[1760984463175,2.79,187.52,187.4,2.85]
[1760984463682,44.46,187.53,187.4,2.85]
[1760984463888,2.79,187.51,187.37,2.85]
[1760984464686,2.79,187.42,187.37,2.85]
[1760984464986,2.79,187.42,187.33,2.85]
[1760984465173,2.79,187.42,187.34,2.85]
[1760984465378,4.8016,187.4,187.34,2.85]
[1760984465888,7.5916,187.4,187.34,2.85]
[1760984469288,4.801,187.42,187.35,2.85]
[1760984469592,2.79,187.5,187.42,2.85]
[1760984469987,4.7995,187.48,187.42,2.85]
[1760984470287,4.7995,187.48,187.43,2.85]
[1760984471195,7.5895,187.48,187.43,2.85]
[1760984471389,7.5898,187.47,187.43,2.85]
[1760984472192,4.7998,187.47,187.43,2.85]
[1760984472394,2.79,187.5,187.43,2.85]
[1760984474096,2.79,187.54,187.43,2.85]
[1760984474291,1.87633,187.57,187.43,7.77993003]
[1760984474591,1.87633,187.57,187.4,24.42440729]
[1760984474592,1.87633,187.57,187.47,2.85]
[1760984474792,1.87633,187.57,187.48,2.85]
[1760984476796,1.87633,187.57,187.49,2.72]
[1760984477191,1.87633,187.57,187.54,2.72]
[1760984478086,1.87633,187.57,187.51,4.7985]
[1760984478289,1.87633,187.57,187.5,2.72]
[1760984478491,1.87633,187.57,187.44,4.92993003]
[1760984478492,2.93,187.56,187.45,2.72]
[1760984478795,2.93,187.56,187.4,2.72]
[1760984479097,4.7992,187.5,187.42,7.5208]
[1760984479501,4.7993,187.49,187.42,7.5208]
[1760984479701,2.93,187.51,187.43,4.8006]
[1760984480097,7.7287,187.51,187.43,7.5206]
[1760984481000,4.7991,187.5,187.43,7.5206]
[1760984481301,2.93,187.51,187.43,7.5206]
[1760984481901,2.93,187.51,187.44,4.8003]
[1760984482198,7.7289,187.51,187.44,4.8003]
[1760984483002,7.7291,187.5,187.44,4.8003]
[1760984484094,2.93,187.49,187.41,4.801]
[1760984484999,4.7996,187.48,187.42,2.72]
[1760984485795,4.7996,187.48,187.42,7.5208]
[1760984486196,2.93,187.49,187.43,2.72]
[1760984487602,2.66,187.56,187.38,7.63993003]
[1760984487899,2.66,187.56,187.39,2.71]
[1760984488403,4.7987,187.51,187.46,2.71]
[1760984488601,7.4587,187.51,187.46,2.71]
[1760984488906,2.66,187.5,187.46,2.71]
[1760984489088,2.66,187.5,187.45,4.8001]
[1760984489802,2.66,187.5,187.46,2.71]
[1760984490895,2.66,187.49,187.43,4.8006]
[1760984491290,1.87633,187.57,187.44,4.8003]
[1760984491504,2.66,187.56,187.45,2.71]
[1760984492406,2.66,187.56,187.45,7.5101]
[1760984494107,4.7988,187.51,187.45,7.5101]
[1760984497306,2.66,187.49,187.43,4.8007]
[1760984498008,2.66,187.49,187.43,7.5107]
[1760984498210,2.66,187.49,187.43,2.71]
[1760984498595,2.66,187.56,187.39,7.63993003]
[1760984498801,2.66,187.56,187.4,5.03745665]
[1760984499003,2.66,187.51,187.37,2.71]
[1760984499303,2.66,187.51,187.4,2.71]
[1760984499502,2.66,187.51,187.41,5.03745468]
[1760984499814,7.4603,187.45,187.42,5.03745468]
[1760984500002,7.4603,187.45,187.4,2.71]
[1760984500304,7.4603,187.45,187.41,5.03724816]
[1760984500606,2.66,187.43,187.39,2.71]
[1760984500806,2.66,187.43,187.4,5.03752336]
[1760984501001,2.66,187.43,187.39,2.71]
[1760984501002,2.66,187.43,187.41,5.03752336]
[1760984501206,2.66,187.43,187.39,2.71]
[1760984501406,2.66,187.43,187.4,5.03762162]
[1760984501606,2.66,187.43,187.41,5.03762162]
[1760984501806,2.66,187.43,187.39,2.71]
[1760984502007,2.66,187.43,187.4,5.03652912]
[1760984502208,2.66,187.43,187.41,5.03652912]
[1760984502410,2.66,187.43,187.39,2.71]
[1760984502608,4.8006,187.44,187.41,2.71]
[1760984503013,4.8006,187.44,187.38,4.8019]
[1760984503014,4.8001,187.46,187.43,2.71]
[1760984503397,2.66,187.46,187.4,2.71]
[1760984503599,2.66,187.46,187.41,7.74653195]
[1760984503806,7.4605,187.44,187.42,5.03653195]
[1760984504014,2.66,187.43,187.36,7.63993003]
[1760984504203,2.66,187.43,187.37,5.03743291]
[1760984504407,2.66,187.43,187.38,7.74743291]
[1760984504609,2.66,187.43,187.39,7.74743291]
[1760984504804,2.66,187.43,187.4,5.03743291]
[1760984505010,4.8008,187.43,187.41,5.03743291]
[1760984505209,4.8008,187.43,187.39,2.71]
[1760984505507,7.4604,187.45,187.41,2.71]
[1760984505713,2.66,187.45,187.42,5.03678047]
[1760984505899,2.66,187.45,187.38,2.71]
[1760984506105,2.66,187.43,187.39,5.03615022]
[1760984506300,2.66,187.43,187.4,5.03615022]
[1760984506504,7.4608,187.43,187.41,5.03615022]
[1760984506715,4.8008,187.43,187.38,2.71]
[1760984506907,4.8008,187.43,187.4,2.71]
[1760984507209,4.8003,187.45,187.42,2.71]
[1760984507513,7.4603,187.45,187.42,2.71]
[1760984507712,7.4603,187.45,187.37,2.71]
[1760984507915,7.4603,187.45,187.39,2.71]
[1760984508105,7.4603,187.45,187.4,5.03769863]
[1760984508306,7.4603,187.45,187.42,2.71]
[1760984508612,2.66,187.47,187.42,2.71]
[1760984508809,2.66,187.47,187.38,2.71]
[1760984509010,2.66,187.47,187.4,2.71]
[1760984509210,2.66,187.47,187.41,5.03726994]
[1760984509514,7.46,187.46,187.42,5.03768563]
[1760984509710,2.66,187.46,187.41,2.71]
[1760984509916,2.66,187.46,187.42,7.74753101]
[1760984510114,2.66,187.46,187.42,2.71]
[1760984510618,2.66,187.46,187.43,5.03770083]
[1760984510816,2.66,187.46,187.39,7.5115]
[1760984511017,2.66,187.46,187.4,5.03783479]
[1760984511217,2.66,187.46,187.41,5.04050154]
[1760984511420,2.66,187.46,187.39,2.71]
[1760984511719,2.66,187.46,187.4,5.04050154]
[1760984512012,2.66,187.43,187.41,5.04050154]
[1760984512317,2.66,187.43,187.39,2.71]
[1760984512517,2.66,187.43,187.4,5.04172596]
[1760984512716,2.66,187.43,187.41,5.04172596]
[1760984512912,2.66,187.43,187.39,2.71]
[1760984513112,2.66,187.43,187.4,5.04172595]
[1760984513313,2.66,187.43,187.41,5.04172595]
[1760984513516,2.66,187.43,187.39,2.71]
[1760984513822,4.8006,187.44,187.41,2.71]
[1760984514015,7.4606,187.44,187.42,5.04301675]
[1760984514315,7.4606,187.44,187.38,2.71]
[1760984514510,7.4606,187.44,187.39,7.75350357]
[1760984514711,7.4606,187.44,187.4,7.75350357]
[1760984514910,7.4606,187.44,187.41,5.04350357]
[1760984515221,7.4606,187.44,187.4,2.71]
[1760984515222,7.4606,187.44,187.42,5.04350357]
[1760984515521,7.4606,187.44,187.4,2.71]
[1760984515820,7.4606,187.44,187.41,5.04244285]
[1760984516019,7.4606,187.44,187.42,5.04244285]
[1760984516217,7.4606,187.44,187.4,2.71]
[1760984516422,7.4606,187.44,187.41,5.04243218]
[1760984516614,7.4606,187.44,187.42,5.04243218]
[1760984516808,7.4606,187.44,187.4,2.71]
[1760984517012,7.4606,187.44,187.41,5.04270286]
[1760984517210,7.4606,187.44,187.42,5.04270286]
[1760984517417,7.4606,187.44,187.4,2.71]
[1760984517723,7.4606,187.44,187.41,5.04244539]
[1760984517924,7.4606,187.44,187.42,5.04244539]
[1760984518117,7.4606,187.44,187.4,2.71]
[1760984518420,4.8006,187.44,187.42,2.75]
[1760984518817,4.8006,187.44,187.43,5.04175804]
[1760984519116,7.68,187.47,187.43,7.79175804]
[1760984519321,7.68,187.47,187.43,2.75]
[1760984519617,2.88,187.47,187.43,2.75]
[1760984521025,7.68,187.46,187.43,2.75]
[1760984521224,2.88,187.5,187.44,5.04221802]
[1760984521521,2.88,187.5,187.39,2.75]
[1760984521824,2.88,187.5,187.41,2.75]
[1760984522008,2.88,187.5,187.42,5.04300958]
[1760984522212,2.88,187.5,187.43,5.04300958]
[1760984522409,2.88,187.46,187.41,2.75]
[1760984522623,2.88,187.46,187.42,5.04852323]
[1760984522921,2.88,187.46,187.43,5.04852323]
[1760984523222,2.88,187.46,187.44,5.04852323]
[1760984523418,9.5974,187.51,187.41,2.75]
[1760984523620,2.88,187.49,187.42,5.05130799]
[1760984523921,2.88,187.49,187.43,5.05130799]
[1760984524118,2.88,187.49,187.44,5.05130799]
[1760984524325,2.88,187.5,187.38,7.67993003]
[1760984524512,2.88,187.5,187.39,5.05114343]
[1760984524717,2.88,187.5,187.4,5.05114343]
[1760984524922,2.88,187.5,187.41,5.05114343]
[1760984525122,7.6807,187.44,187.42,5.05114343]
[1760984525322,7.6807,187.44,187.43,9.03026291]
[1760984527425,4.8007,187.44,187.43,9.03026291]
[1760984527629,7.6802,187.46,187.43,9.03026291]
[1760984527930,2.88,187.45,187.44,9.03026291]
[1760984528631,4.8002,187.46,187.44,9.03026291]
[1760984528830,4.8002,187.46,187.42,2.75]